Workbook

Sheet Beef Repl
B3: KSU-Beef Replacements
B5: An Excel spreadsheet program to evaluate the economic value of purchasing beef replacement females.
L8: Version- 12.15.2025
B28: INTRODUCTION
B29: A spreadsheet program to calculate the net present value of purchasing replacment heifers given expectations for calf selling price, weaning weights, cull cow price, and a target rate of return on investment.
B31: INSTRUCTIONS FOR THE USER:
B32: Be sure to "Enable Content" and "Enable Macros" for the spreadsheet to function correctly.
B33: In the Price and weights and Net Present Value tabs all blue numbers are inputs and all black numbers are calculated from these inputs. Several input cells (i.e., blue number) have a red diamond in the upper right hand corner of the cell. By moving your mouse cursor over this diamond, a brief description of the input will be displayed on the screen.
B40: FOR MORE INFORMATION:
B41: Updated by: | H41: Originally developed by:
B43: Glynn T. Tonsor, Ph.D. | H43: Kevin C. Dhuyvetter, Ph.D.
B44: Agricultural Economist | H44: Former Extension Agricultural Economist
B45: Department of Agricultural Economics | H45: Department of Agricultural Economics
B46: Kansas State University | H46: Kansas State University
B47: gtonsor@k-state.edu
B48: 785-532-1518
B49: Copyright 2025 AgManager.info, K-State Department of Agricultural Economics

Sheet Prices and weights
B2: Calf (average of steer and heifer) and Cull Cow Price Scenarios ($/cwt) | J2: Weaning Weight (steer and heifer) Scenarios
C4: Scenario 1 (S1) | E4: Scenario 2 (S2) | G4: Scenario 3 (S3) | K4: Scenario1 | L4: Scenario2 | M4: Scenario3
C5: USDA (As of Dec. 2025) | E5: Flat at $40 under Scen 1 | G5: Scenario 1 +10% | K5: Low peak | L5: Constant | M5: High peak
B6: Year | C6: Calf | D6: Cull cow | E6: Calf | F6: Cull cow | G6: Calf | H6: Cull cow | J6: Calf | K6: Lbs/hd | L6: Lbs/hd | M6: Lbs/hd
B7: 2026 | C7: 464.7317206 | D7: =C7*0.4 -> 185.8926882 | E7: =C7-40 -> 424.7317206 | F7: =E7*0.4 -> 169.8926882 | G7: =C7*1.1 -> 511.2048927 | H7: =G7*0.4 -> 204.4819571 | J7: 1 | K7: 542 | L7: 562 | M7: 537
B8: =B7+1 -> 2027 | C8: 453.14 | D8: =C8*0.4 -> 181.256 | E8: =E7 -> 424.7317206 | F8: =E8*0.4 -> 169.8926882 | G8: =C8*1.1 -> 498.454 | H8: =G8*0.4 -> 199.3816 | J8: 2 | K8: 552 | L8: =L7 -> 562 | M8: 552
B9: =B8+1 -> 2028 | C9: 450.82 | D9: 180.328 | E9: =E8 -> 424.7317206 | F9: 169.8926882 | G9: 495.902 | H9: 198.3608 | J9: 3 | K9: 562 | L9: =L8 -> 562 | M9: 567
B10: 2029 | C10: 406.43 | D10: 162.572 | E10: 424.7317206 | F10: 169.8926882 | G10: 447.073 | H10: 178.8292 | J10: 4 | K10: 567 | L10: 562 | M10: 582
B11: 2030 | C11: 388.28 | D11: 155.312 | E11: 424.7317206 | F11: 169.8926882 | G11: 427.108 | H11: 170.8432 | J11: 5 | K11: 572 | L11: 562 | M11: 582
B12: 2031 | C12: 367.75 | D12: 147.1 | E12: 424.7317206 | F12: 169.8926882 | G12: 404.525 | H12: 161.81 | J12: 6 | K12: 572 | L12: 562 | M12: 577
B13: 2032 | C13: 352.16 | D13: 140.864 | E13: 424.7317206 | F13: 169.8926882 | G13: 387.376 | H13: 154.9504 | J13: 7 | K13: 567 | L13: 562 | M13: 567
B14: 2033 | C14: 337.35 | D14: 134.94 | E14: 424.7317206 | F14: 169.8926882 | G14: 371.085 | H14: 148.434 | J14: 8 | K14: 565 | L14: 562 | M14: 557
B15: 2034 | C15: 325.11 | D15: 130.044 | E15: 424.7317206 | F15: 169.8926882 | G15: 357.621 | H15: 143.0484 | J15: 9 | K15: 562 | L15: 562 | M15: 552
B16: 2035 | C16: 313.46 | D16: 125.384 | E16: 424.7317206 | F16: 169.8926882 | G16: 344.806 | H16: 137.9224 | J16: 10 | K16: 559 | L16: 562 | M16: 547
B17: Average | C17: =AVERAGE(C7:C16) -> 385.9231721 | D17: =AVERAGE(D7:D16) -> 154.3692688 | E17: 424.7317206 | F17: 169.8926882 | G17: 424.5154893 | H17: 169.8061957 | J17: Average | K17: =AVERAGE(K7:K16) -> 562 | L17: =AVERAGE(L7:L16) -> 562 | M17: =AVERAGE(M7:M16) -> 562
B19: Average weight for calf price (average of steer and heifer), lbs/head | H19: 562
B20: Price slide (change in price for weight deviation from base), $/lb | H20: 0.1215

Sheet Net present value
B2: Input Assumptions
B3: Number of replacements purchased | G3: 100 | I3: Percent marketable calves (1 - death loss) | N3: 0.97
B4: Year of purchase | G4: 2026 | I4: Annual cow death loss | N4: 0.005
B5: First year for calf sales | G5: 2027 | I5: Annual cull rate | N5: 0.15
B6: Cull cow weight, lbs/hd | G6: 1250
B7: Annual cash cow costs, $/year | G7: 1100 | I7: Annual inflation rate on costs | N7: 0.03
B8: ="Price scenario to use (1-3) ("&IF(G8=1,'Prices and weights'!C5,IF(G8=2,'Prices and weights'!E5,'Prices and weights'!G5))&")" -> Price scenario to use (1-3) (USDA (As of Dec. 2025)) | G8: 1 | I8: Annual increase in average weaning weight | N8: 0.015 | AJ8: Sensitivity to discount rate | AM8: Sensitivity to calf/cull prices
B9: Weaning weight scenario to use (1-3) | G9: 1 | I9: Discount rate (interest rate) | N9: 0.08 | R9: Values for sensitivity analysis down below | AJ9: 0.9 | AK9: <= % of base | AM9: 1.1 | AN9: <= % of base
B11: Net Present Value Analysis | R11: Annual cow costs, $/year | X11: Annual Cull Rate | AD11: Annual Cull Rate | AJ11: =N9*AJ9 -> 0.072
C12: Cows at | F12: Prices, $/cwt | H12: Calf | I12: Cull Income | L12: Cost | M12: Net | N12: Discount | R12: =D33 -> 800 | S12: =E33 -> 950 | T12: =F33 -> 1100 | U12: =G33 -> 1250 | V12: =H33 -> 1400 | X12: =Y12-H72 -> 0.1 | Y12: =Z12-H72 -> 0.125 | Z12: =N5 -> 0.15 | AA12: =Z12+H72 -> 0.175 | AB12: =AA12+H72 -> 0.2 | AD12: =X12 -> 0.1 | AE12: =Y12 -> 0.125 | AF12: =Z12 -> 0.15 | AG12: =AA12 -> 0.175 | AH12: =AB12 -> 0.2 | AJ12: Discount | AM12: Prices, $/cwt | AO12: Calf | AP12: Cull Income | AR12: Net
B13: Year | C13: BOY* | D13: Calf | E13: Calf wt | F13: Calf | G13: Cull | H13: Income | I13: Annual | J13: Age | K13: Cash Cost | L13: Adj. | M13: Income | N13: factor | O13: NPV** | R13: Cost | S13: Cost | T13: Cost | U13: Cost | V13: Cost | X13: Cows at Beginning of Year (BOY) | AD13: Net Income | AJ13: factor | AK13: NPV** | AM13: Calf | AN13: Cull | AO13: Income | AP13: Annual | AQ13: Age | AR13: Income | AS13: NPV**
B14: =G5 -> 2027 | C14: =G3 -> 100 | D14: =IF(G5=B14,1,0) -> 1 | E14: =VLOOKUP(D14,weights,IF(G$9=1,2,IF(G$9=2,3,4)))*(1+N$8)^(B14-G$5) -> 542 | F14: =VLOOKUP(B14,Prices,IF(G$8=1,2,IF(G$8=2,4,6)))+('Prices and weights'!H$19-E14)*'Prices and weights'!H$20 -> 455.57 | G14: =VLOOKUP(B14,Prices,IF(G$8=1,3,IF(G$8=2,5,7))) -> 181.256 | H14: =IF(B14>=G$5,E14*F14/100*N$3*C14/G$3,0) -> 2395.113718 | I14: =IF(B14>=G$5,G$6*G14/100*(N$5*C14/G$3),0) -> 339.855 | J14: =IF(B14>=G$5,G$6*G14/100*(C14*(1-N$4-N$5))/G$3,0) -> 1914.5165 | K14: =G$7*(1+N$7)^(B14-G$4)*C14/G$3 -> 1133 | L14: 0 | M14: =H14+I14-K14-L14 -> 1601.968718 | N14: =1/(1+N$9)^(B14-G$4) -> 0.9259259259 | O14: =SUMPRODUCT(M$14:M14,N$14:N14)+J14*N14 -> 3256.004831 | R14: =D$33*(1+N$7)^(B14-G$4)*C14/G$3 -> 824 | S14: =E$33*(1+N$7)^(B14-G$4)*C14/G$3 -> 978.5 | T14: =F$33*(1+N$7)^(B14-G$4)*C14/G$3 -> 1133 | U14: =G$33*(1+N$7)^(B14-G$4)*C14/G$3 -> 1287.5 | V14: =H$33*(1+N$7)^(B14-G$4)*C14/G$3 -> 1442 | X14: =$G3 -> 100 | Y14: =$G3 -> 100 | Z14: =$G3 -> 100 | AA14: =$G3 -> 100 | AB14: =$G3 -> 100 | AD14: =IF(B14>=G$5,E14*F14/100*N$3*X14/G$3,0)+IF(B14>=G$5,G$6*G14/100*(AD$12*X14/G$3),0)-G$7*(1+N$7)^(B14-G$4)*X14/G$3-L14 -> 1488.683718 | AE14: =IF(B14>=G$5,E14*F14/100*N$3*Y14/G$3,0)+IF(B14>=G$5,G$6*G14/100*(AE$12*Y14/G$3),0)-G$7*(1+N$7)^(B14-G$4)*Y14/G$3-L14 -> 1545.326218 | AF14: =IF(B14>=G$5,E14*F14/100*N$3*Z14/G$3,0)+IF(B14>=G$5,G$6*G14/100*(AF$12*Z14/G$3),0)-G$7*(1+N$7)^(B14-G$4)*Z14/G$3-L14 -> 1601.968718 | AG14: =IF(B14>=G$5,E14*F14/100*N$3*AA14/G$3,0)+IF(B14>=G$5,G$6*G14/100*(AG$12*AA14/G$3),0)-G$7*(1+N$7)^(B14-G$4)*AA14/G$3-L14 -> 1658.611218 | AH14: =IF(B14>=G$5,E14*F14/100*N$3*AB14/G$3,0)+IF(B14>=G$5,G$6*G14/100*(AH$12*AB14/G$3),0)-G$7*(1+N$7)^(B14-G$4)*AB14/G$3-L14 -> 1715.253718 | AJ14: =1/(1+AJ$11)^(B14-G$4) -> 0.9328358209 | AK14: =SUMPRODUCT(M$14:M14,AJ$14:AJ14)+J14*AJ14 -> 3280.303375 | AM14: =VLOOKUP(B14,Prices,IF(G$8=1,2,IF(G$8=2,4,6)))*AM$9+('Prices and weights'!H$19-E14)*'Prices and weights'!H$20 -> 500.884 | AN14: =G14*AM$9 -> 199.3816 | AO14: =IF(B14>=G$5,E14*AM14/100*N$3*C14/G$3,0) -> 2633.347542 | AP14: =IF(B14>=G$5,G$6*AN14/100*(N$5*C14/G$3),0) -> 373.8405 | AQ14: =IF(B14>=G$5,G$6*AN14/100*(C14*(1-N$4-N$5))/G$3,0) -> 2105.96815 | AR14: =AO14+AP14-K14-L14 -> 1874.188042 | AS14: =SUMPRODUCT(AR$14:AR14,N$14:N14)+AQ14*N14 -> 3685.329807
B15: =+B14+1 -> 2028 | C15: =C14*(1-N$4-N$5) -> 84.5 | D15: =IF(D14>0,D14+1,IF(G$5=B15,1,0)) -> 2 | E15: 560.28 | F15: =VLOOKUP(B15,Prices,IF(G$8=1,2,IF(G$8=2,4,6)))+('Prices and weights'!H$19-E15)*'Prices and weights'!H$20 -> 451.02898 | G15: =VLOOKUP(B15,Prices,IF(G$8=1,3,IF(G$8=2,5,7))) -> 180.328 | H15: =IF(B15>=G$5,E15*F15/100*N$3*C15/G$3,0) -> 2071.27618 | I15: =G$6*G15/100*(N$5*C15/G$3) -> 285.707175 | J15: =IF(B15>=G$5,G$6*G15/100*(C15*(1-N$4-N$5))/G$3,0) -> 1609.483753 | K15: =G$7*(1+N$7)^(B15-G$4)*C15/G$3 -> 986.10655 | L15: 0 | M15: =H15+I15-K15-L15 -> 1370.876805 | N15: 0.8573388203 | O15: =SUMPRODUCT(M$14:M15,N$14:N15)+J15*N15 -> 4038.483173 | R15: 717.1684 | S15: 851.637475 | T15: 986.10655 | U15: 1120.575625 | V15: 1255.0447 | X15: =X14*(1-$N$4-X$12) -> 89.5 | Y15: =Y14*(1-$N$4-Y$12) -> 87 | Z15: =Z14*(1-$N$4-Z$12) -> 84.5 | AA15: =AA14*(1-$N$4-AA$12) -> 82 | AB15: =AB14*(1-$N$4-AB$12) -> 79.5 | AD15: 1351.122801 | AE15: 1362.408615 | AF15: 1370.876805 | AG15: 1376.52737 | AH15: 1379.360309 | AJ15: 0.8701826687 | AK15: =SUMPRODUCT(M$14:M15,AJ$14:AJ15)+J15*AJ15 -> 4087.831908 | AM15: =VLOOKUP(B15,Prices,IF(G$8=1,2,IF(G$8=2,4,6)))*AM$9+('Prices and weights'!H$19-E15)*'Prices and weights'!H$20 -> 496.11098 | AN15: 198.3608 | AO15: 2278.307827 | AP15: 314.2778925 | AQ15: 1770.432128 | AR15: 1606.47917 | AS15: =SUMPRODUCT(AR$14:AR15,N$14:N15)+AQ15*N15 -> 4630.516446
B16: 2029 | C16: 71.4025 | D16: =IF(D15>0,D15+1,IF(G$5=B16,1,0)) -> 3 | E16: 578.98645 | F16: =VLOOKUP(B16,Prices,IF(G$8=1,2,IF(G$8=2,4,6)))+('Prices and weights'!H$19-E16)*'Prices and weights'!H$20 -> 404.3661463 | G16: 162.572 | H16: 1621.542521 | I16: =G$6*G16/100*(N$5*C16/G$3) -> 217.6508856 | J16: 1226.099989 | K16: 858.2578358 | L16: 0 | M16: 980.9355705 | N16: 0.793832241 | O16: =SUMPRODUCT(M$14:M16,N$14:N16)+J16*N16 -> 4410.626255 | R16: 624.1875169 | S16: 741.2226764 | T16: 858.2578358 | U16: 975.2929952 | V16: 1092.328155 | X16: =X15*(1-$N$4-X$12) -> 80.1025 | Y16: 75.69 | Z16: 71.4025 | AA16: 67.24 | AB16: 63.2025 | AD16: 1019.067001 | AE16: 1001.384369 | AF16: 980.9355705 | AG16: 957.9111191 | AH16: 932.501529 | AJ16: 0.8117375641 | AK16: =SUMPRODUCT(M$14:M16,AJ$14:AJ16)+J16*AJ16 -> 4478.820709 | AM16: =VLOOKUP(B16,Prices,IF(G$8=1,2,IF(G$8=2,4,6)))*AM$9+('Prices and weights'!H$19-E16)*'Prices and weights'!H$20 -> 445.0091463 | AN16: 178.8292 | AO16: 1784.524396 | AP16: 239.4159741 | AQ16: 1348.709988 | AR16: 1165.682534 | AS16: =SUMPRODUCT(AR$14:AR16,N$14:N16)+AQ16*N16 -> 5108.662104
B17: 2030 | C17: 60.3351125 | D17: 4 | E17: 592.8996386 | F17: =VLOOKUP(B17,Prices,IF(G$8=1,2,IF(G$8=2,4,6)))+('Prices and weights'!H$19-E17)*'Prices and weights'!H$20 -> 384.5256939 | G17: 155.312 | H17: 1334.284409 | I17: 175.7018811 | J17: 989.7872636 | K17: 746.9847074 | L17: 0 | M17: 763.0015826 | N17: 0.7350298528 | O17: =SUMPRODUCT(M$14:M17,N$14:N17)+J17*N17 -> 4725.660681 | R17: 543.2616054 | S17: 645.1231564 | T17: 746.9847074 | U17: 848.8462584 | V17: 950.7078094 | X17: 71.6917375 | Y17: 65.8503 | Z17: 60.3351125 | AA17: 55.1368 | AB17: 50.2459875 | AD17: 837.0269986 | AE17: 800.7865434 | AF17: 763.0015826 | AG17: 724.0240455 | AH17: 684.1876608 | AJ17: 0.757217877 | AK17: =SUMPRODUCT(M$14:M17,AJ$14:AJ17)+J17*AJ17 -> 4810.79234 | AM17: =VLOOKUP(B17,Prices,IF(G$8=1,2,IF(G$8=2,4,6)))*AM$9+('Prices and weights'!H$19-E17)*'Prices and weights'!H$20 -> 423.3536939 | AN17: 170.8432 | AO17: 1469.015575 | AP17: 193.2720692 | AQ17: 1088.76599 | AR17: 915.3029365 | AS17: =SUMPRODUCT(AR$14:AR17,N$14:N17)+AQ17*N17 -> 5511.06312
B18: 2031 | C18: 50.98317006 | D18: 5 | E18: 607.099951 | F18: =VLOOKUP(B18,Prices,IF(G$8=1,2,IF(G$8=2,4,6)))+('Prices and weights'!H$19-E18)*'Prices and weights'!H$20 -> 362.270356 | G18: 147.1 | H18: 1087.656014 | I18: 140.6179559 | J18: 792.1478184 | K18: 650.1381401 | L18: 0 | M18: 578.1358302 | N18: 0.680583197 | O18: =SUMPRODUCT(M$14:M18,N$14:N18)+J18*N18 -> 4930.729521 | R18: 472.8277382 | S18: 561.4829392 | T18: 650.1381401 | U18: 738.793341 | V18: 827.4485419 | X18: 64.16410506 | Y18: 57.289761 | Z18: 50.98317006 | AA18: 45.212176 | AB18: 39.94556006 | AD18: 668.6133157 | AE18: 623.3155369 | AF18: 578.1358302 | AG18: 533.4777372 | AH18: 489.6971654 | AJ18: 0.7063599599 | AK18: =SUMPRODUCT(M$14:M18,AJ$14:AJ18)+J18*AJ18 -> 5029.221233 | AM18: =VLOOKUP(B18,Prices,IF(G$8=1,2,IF(G$8=2,4,6)))*AM$9+('Prices and weights'!H$19-E18)*'Prices and weights'!H$20 -> 399.045356 | AN18: 161.81 | AO18: 1198.066787 | AP18: 154.6797515 | AQ18: 871.3626002 | AR18: 702.6083985 | AS18: =SUMPRODUCT(AR$14:AR18,N$14:N18)+AQ18*N18 -> 5782.005829
B19: 2032 | C19: 43.0807787 | D19: 6 | E19: 616.2064502 | F19: =VLOOKUP(B19,Prices,IF(G$8=1,2,IF(G$8=2,4,6)))+('Prices and weights'!H$19-E19)*'Prices and weights'!H$20 -> 345.5739163 | G19: 140.864 | H19: 889.8616157 | I19: 113.7849527 | J19: 640.9885669 | K19: 565.8477302 | L19: 0 | M19: 437.7988382 | N19: 0.6301696269 | O19: =SUMPRODUCT(M$14:M19,N$14:N19)+J19*N19 -> 5071.426083 | R19: 411.525622 | S19: 488.6866761 | T19: 565.8477302 | U19: 643.0087843 | V19: 720.1698384 | X19: 57.42687403 | Y19: 49.84209207 | Z19: 43.0807787 | AA19: 37.07398432 | AB19: 31.75672025 | AD19: 533.0292234 | AE19: 484.5686936 | AF19: 437.7988382 | AG19: 393.0760933 | AH19: 350.6792276 | AJ19: 0.658917873 | AK19: =SUMPRODUCT(M$14:M19,AJ$14:AJ19)+J19*AJ19 -> 5180.512034 | AM19: =VLOOKUP(B19,Prices,IF(G$8=1,2,IF(G$8=2,4,6)))*AM$9+('Prices and weights'!H$19-E19)*'Prices and weights'!H$20 -> 380.7899163 | AN19: 154.9504 | AO19: 980.5437106 | AP19: 125.163448 | AQ19: 705.0874236 | AR19: 539.8594283 | AS19: =SUMPRODUCT(AR$14:AR19,N$14:N19)+AQ19*N19 -> 5973.498778
B20: 2033 | C20: 36.403258 | D20: 7 | E20: 619.9823307 | F20: =VLOOKUP(B20,Prices,IF(G$8=1,2,IF(G$8=2,4,6)))+('Prices and weights'!H$19-E20)*'Prices and weights'!H$20 -> 330.3051468 | G20: 134.94 | H20: 723.1137859 | I20: 92.10479316 | J20: 518.8570015 | K20: 492.485572 | L20: 0 | M20: 322.7330071 | N20: 0.5834903953 | O20: =SUMPRODUCT(M$14:M20,N$14:N20)+J20*N20 -> 5158.554243 | R20: 358.1713251 | S20: 425.3284485 | T20: 492.485572 | U20: 559.6426954 | V20: 626.7998189 | X20: 51.39705226 | Y20: 43.3626201 | Z20: 36.403258 | AA20: 30.40066714 | AB20: 25.2465926 | AD20: 412.3134695 | AE20: 366.1457422 | AF20: 322.7330071 | AG20: 282.3366318 | AH20: 245.1159585 | AJ20: 0.614662195 | AK20: =SUMPRODUCT(M$14:M20,AJ$14:AJ20)+J20*AJ20 -> 5275.446773 | AM20: =VLOOKUP(B20,Prices,IF(G$8=1,2,IF(G$8=2,4,6)))*AM$9+('Prices and weights'!H$19-E20)*'Prices and weights'!H$20 -> 364.0401468 | AN20: 148.434 | AO20: 796.9674446 | AP20: 101.3152725 | AQ20: 570.7427016 | AR20: 405.7971451 | AS20: =SUMPRODUCT(AR$14:AR20,N$14:N20)+AQ20*N20 -> 6098.975721
B21: 2034 | C21: 30.76075301 | D21: 8 | E21: 627.0623758 | F21: =VLOOKUP(B21,Prices,IF(G$8=1,2,IF(G$8=2,4,6)))+('Prices and weights'!H$19-E21)*'Prices and weights'!H$20 -> 317.2049213 | G21: 130.044 | H21: 593.498133 | I21: 75.00471309 | J21: 422.5265504 | K21: 428.6348176 | L21: 0 | M21: 239.8680285 | N21: 0.5402688845 | O21: =SUMPRODUCT(M$14:M21,N$14:N21)+J21*N21 -> 5213.677347 | R21: 311.7344128 | S21: 370.1846152 | T21: 428.6348176 | U21: 487.08502 | V21: 545.5352224 | X21: 46.00036177 | Y21: 37.72547949 | Z21: 30.76075301 | AA21: 24.92854706 | AB21: 20.07104112 | AD21: 321.3164116 | AE21: 278.8468234 | AF21: 239.8680285 | AG21: 204.5199561 | AH21: 172.8243981 | AJ21: 0.5733789132 | AK21: =SUMPRODUCT(M$14:M21,AJ$14:AJ21)+J21*AJ21 -> 5336.328073 | AM21: =VLOOKUP(B21,Prices,IF(G$8=1,2,IF(G$8=2,4,6)))*AM$9+('Prices and weights'!H$19-E21)*'Prices and weights'!H$20 -> 349.7159213 | AN21: 143.0484 | AO21: 654.3270058 | AP21: 82.5051844 | AQ21: 464.7792055 | AR21: 308.1973726 | AS21: =SUMPRODUCT(AR$14:AR21,N$14:N21)+AQ21*N21 -> 6183.56803
B22: 2035 | C22: =C21*(1-N$4-N$5) -> 25.9928363 | D22: =IF(D21>0,D21+1,IF(G$5=B22,1,0)) -> 9 | E22: =VLOOKUP(D22,weights,IF(G$9=1,2,IF(G$9=2,3,4)))*(1+N$8)^(B22-G$5) -> 633.0888337 | F22: =VLOOKUP(B22,Prices,IF(G$8=1,2,IF(G$8=2,4,6)))+('Prices and weights'!H$19-E22)*'Prices and weights'!H$20 -> 304.8227067 | G22: =VLOOKUP(B22,Prices,IF(G$8=1,3,IF(G$8=2,5,7))) -> 125.384 | H22: =IF(B22>=G$5,E22*F22/100*N$3*C22/G$3,0) -> 486.5610887 | I22: =G$6*G22/100*(N$5*C22/G$3) -> 61.10785849 | J22: 344.2409362 | K22: =G$7*(1+N$7)^(B22-G$4)*C22/G$3 -> 373.0623135 | L22: 0 | M22: =H22+I22-K22-L22 -> 174.6066337 | N22: =1/(1+N$9)^(B22-G$4) -> 0.5002489671 | O22: =SUMPRODUCT(M$14:M22,N$14:N22)+J22*N22 -> 5244.952359 | R22: 271.3180462 | S22: 322.1901798 | T22: 373.0623135 | U22: 423.9344471 | V22: 474.8065808 | X22: 41.17032378 | Y22: 32.82116715 | Z22: 25.9928363 | AA22: 20.44140859 | AB22: 15.95647769 | AD22: 244.2981392 | AE22: 207.6157283 | AF22: 174.6066337 | AG22: 145.3244251 | AH22: 119.6917828 | AJ22: 0.5348683892 | AK22: =SUMPRODUCT(M$14:M22,AJ$14:AJ22)+J22*AJ22 -> 5371.575423 | AM22: =VLOOKUP(B22,Prices,IF(G$8=1,2,IF(G$8=2,4,6)))*AM$9+('Prices and weights'!H$19-E22)*'Prices and weights'!H$20 -> 336.1687067 | AN22: 137.9224 | AO22: 536.5958911 | AP22: 67.21864434 | AQ22: 378.6650298 | AR22: 230.7522219 | AS22: =SUMPRODUCT(AR$14:AR22,N$14:N22)+AQ22*N22 -> 6237.322638
B23: 2036 | C23: =C22*(1-N$4-N$5) -> 21.96394667 | D23: =IF(D22>0,D22+1,IF(G$5=B23,1,0)) -> 10 | E23: =VLOOKUP(D23,weights,IF(G$9=1,2,IF(G$9=2,3,4)))*(1+N$8)^(B23-G$5) -> 639.1549962 | F23: =VLOOKUP(B23,Prices,IF(G$8=1,2,IF(G$8=2,4,6)))+('Prices and weights'!H$19-E23)*'Prices and weights'!H$20 -> 304.085668 | G23: =VLOOKUP(B23,Prices,IF(G$8=1,3,IF(G$8=2,5,7))) -> 125.384 | H23: =IF(B23>=G$5,E23*F23/100*N$3*C23/G$3,0) -> 414.0799999 | I23: =G$6*G23/100*(N$5*C23/G$3) -> 51.63614042 | J23: 290.8835911 | K23: =G$7*(1+N$7)^(B23-G$4)*C23/G$3 -> 324.6947845 | L23: 0 | M23: =H23+I23-K23-L23 -> 141.0213558 | N23: =1/(1+N$9)^(B23-G$4) -> 0.4631934881 | O23: =SUMPRODUCT(M$14:M23,N$14:N23)+J23*N23 -> 5272.801746 | R23: 236.1416615 | S23: 280.418223 | T23: 324.6947845 | U23: 368.9713461 | V23: 413.2479076 | X23: 36.84743979 | Y23: 28.55441542 | Z23: 21.96394667 | AA23: 16.76195504 | AB23: 12.68539976 | AD23: 207.7065715 | AE23: 172.1476776 | AF23: 141.0213558 | AG23: 114.1892867 | AH23: 91.38858321 | AJ23: 0.4989443929 | AK23: =SUMPRODUCT(M$14:M23,AJ$14:AJ23)+J23*AJ23 -> 5402.948379 | AM23: =VLOOKUP(B23,Prices,IF(G$8=1,2,IF(G$8=2,4,6)))*AM$9+('Prices and weights'!H$19-E23)*'Prices and weights'!H$20 -> 335.431668 | AN23: 137.9224 | AO23: 456.7645229 | AP23: 56.79975447 | AQ23: 319.9719502 | AR23: 188.8694928 | AS23: =SUMPRODUCT(AR$14:AR23,N$14:N23)+AQ23*N23 -> 6283.58789
B24: * BOY = Beginning of year | E24: =AVERAGE(E14:E23) -> 601.6761026 | F24: =AVERAGE(F14:F23) -> 365.9753535 | G24: =AVERAGE(G14:G23) -> 148.3184 | O24: ** Net present value if replacement is sold in this year
B26: The Net Present Value (NPV) reflects the amount that could be paid for a replacement such that the expected rate of return from the investment would be exactly equal to the discount rate given all of the assumptions used in the analysis. If you have a targeted rate of return for investing in replacements, enter that as the discount rate.
B31: Sensitivity Analysis of NPV to varying annual cow costs
D32: Annual cow costs, $/year
D33: =E33-H46 -> 800 | E33: =F33-H46 -> 950 | F33: =G7 -> 1100 | G33: =F33+H46 -> 1250 | H33: =G33+H46 -> 1400
B34: Year | C34: Calf | D34: NPV** | E34: NPV** | F34: NPV** | G34: NPV** | H34: NPV**
B35: =B14 -> 2027 | C35: =D14 -> 1 | D35: =SUMPRODUCT(M$14:M14,N$14:N14)+J14*N14+SUMPRODUCT(K$14:K14,N$14:N14)-SUMPRODUCT(R$14:R14,N$14:N14) -> 3542.115943 | E35: =SUMPRODUCT(M$14:M14,N$14:N14)+J14*N14+SUMPRODUCT(K$14:K14,N$14:N14)-SUMPRODUCT(S$14:S14,N$14:N14) -> 3399.060387 | F35: =SUMPRODUCT(M$14:M14,N$14:N14)+J14*N14+SUMPRODUCT(K$14:K14,N$14:N14)-SUMPRODUCT(T$14:T14,N$14:N14) -> 3256.004831 | G35: =SUMPRODUCT(M$14:M14,N$14:N14)+J14*N14+SUMPRODUCT(K$14:K14,N$14:N14)-SUMPRODUCT(U$14:U14,N$14:N14) -> 3112.949276 | H35: =SUMPRODUCT(M$14:M14,N$14:N14)+J14*N14+SUMPRODUCT(K$14:K14,N$14:N14)-SUMPRODUCT(V$14:V14,N$14:N14) -> 2969.89372
B36: =+B35+1 -> 2028 | C36: =D15 -> 2 | D36: =SUMPRODUCT(M$14:M15,N$14:N15)+J15*N15+SUMPRODUCT(K$14:K15,N$14:N15)-SUMPRODUCT(R$14:R15,N$14:N15) -> 4555.1654 | E36: =SUMPRODUCT(M$14:M15,N$14:N15)+J15*N15+SUMPRODUCT(K$14:K15,N$14:N15)-SUMPRODUCT(S$14:S15,N$14:N15) -> 4296.824287 | F36: =SUMPRODUCT(M$14:M15,N$14:N15)+J15*N15+SUMPRODUCT(K$14:K15,N$14:N15)-SUMPRODUCT(T$14:T15,N$14:N15) -> 4038.483173 | G36: =SUMPRODUCT(M$14:M15,N$14:N15)+J15*N15+SUMPRODUCT(K$14:K15,N$14:N15)-SUMPRODUCT(U$14:U15,N$14:N15) -> 3780.142059 | H36: =SUMPRODUCT(M$14:M15,N$14:N15)+J15*N15+SUMPRODUCT(K$14:K15,N$14:N15)-SUMPRODUCT(V$14:V15,N$14:N15) -> 3521.800945
B37: 2029 | C37: 3 | D37: =SUMPRODUCT(M$14:M16,N$14:N16)+J16*N16+SUMPRODUCT(K$14:K16,N$14:N16)-SUMPRODUCT(R$14:R16,N$14:N16) -> 5113.121048 | E37: =SUMPRODUCT(M$14:M16,N$14:N16)+J16*N16+SUMPRODUCT(K$14:K16,N$14:N16)-SUMPRODUCT(S$14:S16,N$14:N16) -> 4761.873652 | F37: =SUMPRODUCT(M$14:M16,N$14:N16)+J16*N16+SUMPRODUCT(K$14:K16,N$14:N16)-SUMPRODUCT(T$14:T16,N$14:N16) -> 4410.626255 | G37: =SUMPRODUCT(M$14:M16,N$14:N16)+J16*N16+SUMPRODUCT(K$14:K16,N$14:N16)-SUMPRODUCT(U$14:U16,N$14:N16) -> 4059.378859 | H37: =SUMPRODUCT(M$14:M16,N$14:N16)+J16*N16+SUMPRODUCT(K$14:K16,N$14:N16)-SUMPRODUCT(V$14:V16,N$14:N16) -> 3708.131462
B38: 2030 | C38: 4 | D38: =SUMPRODUCT(M$14:M17,N$14:N17)+J17*N17+SUMPRODUCT(K$14:K17,N$14:N17)-SUMPRODUCT(R$14:R17,N$14:N17) -> 5577.898036 | E38: =SUMPRODUCT(M$14:M17,N$14:N17)+J17*N17+SUMPRODUCT(K$14:K17,N$14:N17)-SUMPRODUCT(S$14:S17,N$14:N17) -> 5151.779358 | F38: =SUMPRODUCT(M$14:M17,N$14:N17)+J17*N17+SUMPRODUCT(K$14:K17,N$14:N17)-SUMPRODUCT(T$14:T17,N$14:N17) -> 4725.660681 | G38: =SUMPRODUCT(M$14:M17,N$14:N17)+J17*N17+SUMPRODUCT(K$14:K17,N$14:N17)-SUMPRODUCT(U$14:U17,N$14:N17) -> 4299.542004 | H38: =SUMPRODUCT(M$14:M17,N$14:N17)+J17*N17+SUMPRODUCT(K$14:K17,N$14:N17)-SUMPRODUCT(V$14:V17,N$14:N17) -> 3873.423326
B39: 2031 | C39: 5 | D39: =SUMPRODUCT(M$14:M18,N$14:N18)+J18*N18+SUMPRODUCT(K$14:K18,N$14:N18)-SUMPRODUCT(R$14:R18,N$14:N18) -> 5903.641356 | E39: =SUMPRODUCT(M$14:M18,N$14:N18)+J18*N18+SUMPRODUCT(K$14:K18,N$14:N18)-SUMPRODUCT(S$14:S18,N$14:N18) -> 5417.185438 | F39: =SUMPRODUCT(M$14:M18,N$14:N18)+J18*N18+SUMPRODUCT(K$14:K18,N$14:N18)-SUMPRODUCT(T$14:T18,N$14:N18) -> 4930.729521 | G39: =SUMPRODUCT(M$14:M18,N$14:N18)+J18*N18+SUMPRODUCT(K$14:K18,N$14:N18)-SUMPRODUCT(U$14:U18,N$14:N18) -> 4444.273603 | H39: =SUMPRODUCT(M$14:M18,N$14:N18)+J18*N18+SUMPRODUCT(K$14:K18,N$14:N18)-SUMPRODUCT(V$14:V18,N$14:N18) -> 3957.817686
B40: 2032 | C40: 6 | D40: =SUMPRODUCT(M$14:M19,N$14:N19)+J19*N19+SUMPRODUCT(K$14:K19,N$14:N19)-SUMPRODUCT(R$14:R19,N$14:N19) -> 6141.587023 | E40: =SUMPRODUCT(M$14:M19,N$14:N19)+J19*N19+SUMPRODUCT(K$14:K19,N$14:N19)-SUMPRODUCT(S$14:S19,N$14:N19) -> 5606.506553 | F40: =SUMPRODUCT(M$14:M19,N$14:N19)+J19*N19+SUMPRODUCT(K$14:K19,N$14:N19)-SUMPRODUCT(T$14:T19,N$14:N19) -> 5071.426083 | G40: =SUMPRODUCT(M$14:M19,N$14:N19)+J19*N19+SUMPRODUCT(K$14:K19,N$14:N19)-SUMPRODUCT(U$14:U19,N$14:N19) -> 4536.345612 | H40: =SUMPRODUCT(M$14:M19,N$14:N19)+J19*N19+SUMPRODUCT(K$14:K19,N$14:N19)-SUMPRODUCT(V$14:V19,N$14:N19) -> 4001.265142
B41: 2033 | C41: 7 | D41: =SUMPRODUCT(M$14:M20,N$14:N20)+J20*N20+SUMPRODUCT(K$14:K20,N$14:N20)-SUMPRODUCT(R$14:R20,N$14:N20) -> 6307.086257 | E41: =SUMPRODUCT(M$14:M20,N$14:N20)+J20*N20+SUMPRODUCT(K$14:K20,N$14:N20)-SUMPRODUCT(S$14:S20,N$14:N20) -> 5732.82025 | F41: =SUMPRODUCT(M$14:M20,N$14:N20)+J20*N20+SUMPRODUCT(K$14:K20,N$14:N20)-SUMPRODUCT(T$14:T20,N$14:N20) -> 5158.554243 | G41: =SUMPRODUCT(M$14:M20,N$14:N20)+J20*N20+SUMPRODUCT(K$14:K20,N$14:N20)-SUMPRODUCT(U$14:U20,N$14:N20) -> 4584.288237 | H41: =SUMPRODUCT(M$14:M20,N$14:N20)+J20*N20+SUMPRODUCT(K$14:K20,N$14:N20)-SUMPRODUCT(V$14:V20,N$14:N20) -> 4010.02223
B42: 2034 | C42: 8 | D42: =SUMPRODUCT(M$14:M21,N$14:N21)+J21*N21+SUMPRODUCT(K$14:K21,N$14:N21)-SUMPRODUCT(R$14:R21,N$14:N21) -> 6425.367011 | E42: =SUMPRODUCT(M$14:M21,N$14:N21)+J21*N21+SUMPRODUCT(K$14:K21,N$14:N21)-SUMPRODUCT(S$14:S21,N$14:N21) -> 5819.522179 | F42: =SUMPRODUCT(M$14:M21,N$14:N21)+J21*N21+SUMPRODUCT(K$14:K21,N$14:N21)-SUMPRODUCT(T$14:T21,N$14:N21) -> 5213.677347 | G42: =SUMPRODUCT(M$14:M21,N$14:N21)+J21*N21+SUMPRODUCT(K$14:K21,N$14:N21)-SUMPRODUCT(U$14:U21,N$14:N21) -> 4607.832514 | H42: =SUMPRODUCT(M$14:M21,N$14:N21)+J21*N21+SUMPRODUCT(K$14:K21,N$14:N21)-SUMPRODUCT(V$14:V21,N$14:N21) -> 4001.987682
B43: 2035 | C43: 9 | D43: =SUMPRODUCT(M$14:M22,N$14:N22)+J22*N22+SUMPRODUCT(K$14:K22,N$14:N22)-SUMPRODUCT(R$14:R22,N$14:N22) -> 6507.539489 | E43: =SUMPRODUCT(M$14:M22,N$14:N22)+J22*N22+SUMPRODUCT(K$14:K22,N$14:N22)-SUMPRODUCT(S$14:S22,N$14:N22) -> 5876.245924 | F43: =SUMPRODUCT(M$14:M22,N$14:N22)+J22*N22+SUMPRODUCT(K$14:K22,N$14:N22)-SUMPRODUCT(T$14:T22,N$14:N22) -> 5244.952359 | G43: =SUMPRODUCT(M$14:M22,N$14:N22)+J22*N22+SUMPRODUCT(K$14:K22,N$14:N22)-SUMPRODUCT(U$14:U22,N$14:N22) -> 4613.658795 | H43: =SUMPRODUCT(M$14:M22,N$14:N22)+J22*N22+SUMPRODUCT(K$14:K22,N$14:N22)-SUMPRODUCT(V$14:V22,N$14:N22) -> 3982.36523
B44: 2036 | C44: 10 | D44: =SUMPRODUCT(M$14:M23,N$14:N23)+J23*N23+SUMPRODUCT(K$14:K23,N$14:N23)-SUMPRODUCT(R$14:R23,N$14:N23) -> 6576.406105 | E44: =SUMPRODUCT(M$14:M23,N$14:N23)+J23*N23+SUMPRODUCT(K$14:K23,N$14:N23)-SUMPRODUCT(S$14:S23,N$14:N23) -> 5924.603925 | F44: =SUMPRODUCT(M$14:M23,N$14:N23)+J23*N23+SUMPRODUCT(K$14:K23,N$14:N23)-SUMPRODUCT(T$14:T23,N$14:N23) -> 5272.801746 | G44: =SUMPRODUCT(M$14:M23,N$14:N23)+J23*N23+SUMPRODUCT(K$14:K23,N$14:N23)-SUMPRODUCT(U$14:U23,N$14:N23) -> 4620.999566 | H44: =SUMPRODUCT(M$14:M23,N$14:N23)+J23*N23+SUMPRODUCT(K$14:K23,N$14:N23)-SUMPRODUCT(V$14:V23,N$14:N23) -> 3969.197386
B45: ** Net present value if replacement is sold in this year
B46: Increment to use for annual costs/cow | H46: 150
B48: Values to include in chart (Calf number)
D49: Annual cow costs, $/year
B50: Calves | D50: =D33 -> 800 | E50: =E33 -> 950 | F50: =F33 -> 1100 | G50: =G33 -> 1250 | H50: =H33 -> 1400
B51: 4 | C51: =B51&" calves" -> 4 calves | D51: =VLOOKUP($B51,$C$35:$H$44,2) -> 5577.898036 | E51: =VLOOKUP($B51,$C$35:$H$44,3) -> 5151.779358 | F51: =VLOOKUP($B51,$C$35:$H$44,4) -> 4725.660681 | G51: =VLOOKUP($B51,$C$35:$H$44,5) -> 4299.542004 | H51: =VLOOKUP($B51,$C$35:$H$44,6) -> 3873.423326
B52: 7 | C52: =B52&" calves" -> 7 calves | D52: =VLOOKUP($B52,$C$35:$H$44,2) -> 6307.086257 | E52: =VLOOKUP($B52,$C$35:$H$44,3) -> 5732.82025 | F52: =VLOOKUP($B52,$C$35:$H$44,4) -> 5158.554243 | G52: =VLOOKUP($B52,$C$35:$H$44,5) -> 4584.288237 | H52: =VLOOKUP($B52,$C$35:$H$44,6) -> 4010.02223
B53: 10 | C53: =B53&" calves" -> 10 calves | D53: =VLOOKUP($B53,$C$35:$H$44,2) -> 6576.406105 | E53: =VLOOKUP($B53,$C$35:$H$44,3) -> 5924.603925 | F53: =VLOOKUP($B53,$C$35:$H$44,4) -> 5272.801746 | G53: =VLOOKUP($B53,$C$35:$H$44,5) -> 4620.999566 | H53: =VLOOKUP($B53,$C$35:$H$44,6) -> 3969.197386
B57: Sensitivity Analysis of NPV to varying annual cow cull rates
D58: Annual cow cull rate, %
D59: =E59-H72 -> 0.1 | E59: =F59-H72 -> 0.125 | F59: =N5 -> 0.15 | G59: =F59+H72 -> 0.175 | H59: =G59+H72 -> 0.2
B60: Year | C60: Calf | D60: NPV** | E60: NPV** | F60: NPV** | G60: NPV** | H60: NPV**
B61: =B14 -> 2027 | C61: =D14 -> 1 | D61: =SUMPRODUCT(AD$14:AD14,N$14:N14)+IF(B14>=G$5,G$6*G14/100*(X14*(1-N$4-X$12))/G$3,0)*N14 -> 3256.004831 | E61: =SUMPRODUCT(AE$14:AE14,N$14:N14)+IF(B14>=G$5,G$6*G14/100*(Y14*(1-N$4-Y$12))/G$3,0)*N14 -> 3256.004831 | F61: =SUMPRODUCT(AF$14:AF14,N$14:N14)+IF(B14>=G$5,G$6*G14/100*(Z14*(1-N$4-Z$12))/G$3,0)*N14 -> 3256.004831 | G61: =SUMPRODUCT(AG$14:AG14,N$14:N14)+IF(B14>=G$5,G$6*G14/100*(AA14*(1-N$4-AA$12))/G$3,0)*N14 -> 3256.004831 | H61: =SUMPRODUCT(AH$14:AH14,N$14:N14)+IF(B14>=G$5,G$6*G14/100*(AB14*(1-N$4-AB$12))/G$3,0)*N14 -> 3256.004831
B62: =+B61+1 -> 2028 | C62: =D15 -> 2 | D62: =SUMPRODUCT(AD$14:AD15,N$14:N15)+IF(B15>=G$5,G$6*G15/100*(X15*(1-N$4-X$12))/G$3,0)*N15 -> 4084.783666 | E62: =SUMPRODUCT(AE$14:AE15,N$14:N15)+IF(B15>=G$5,G$6*G15/100*(Y15*(1-N$4-Y$12))/G$3,0)*N15 -> 4061.63342 | F62: =SUMPRODUCT(AF$14:AF15,N$14:N15)+IF(B15>=G$5,G$6*G15/100*(Z15*(1-N$4-Z$12))/G$3,0)*N15 -> 4038.483173 | G62: =SUMPRODUCT(AG$14:AG15,N$14:N15)+IF(B15>=G$5,G$6*G15/100*(AA15*(1-N$4-AA$12))/G$3,0)*N15 -> 4015.332926 | H62: =SUMPRODUCT(AH$14:AH15,N$14:N15)+IF(B15>=G$5,G$6*G15/100*(AB15*(1-N$4-AB$12))/G$3,0)*N15 -> 3992.182679
B63: 2029 | C63: 3 | D63: =SUMPRODUCT(AD$14:AD16,N$14:N16)+IF(B16>=G$5,G$6*G16/100*(X16*(1-N$4-X$12))/G$3,0)*N16 -> 4502.270327 | E63: =SUMPRODUCT(AE$14:AE16,N$14:N16)+IF(B16>=G$5,G$6*G16/100*(Y16*(1-N$4-Y$12))/G$3,0)*N16 -> 4456.122547 | F63: =SUMPRODUCT(AF$14:AF16,N$14:N16)+IF(B16>=G$5,G$6*G16/100*(Z16*(1-N$4-Z$12))/G$3,0)*N16 -> 4410.626255 | G63: =SUMPRODUCT(AG$14:AG16,N$14:N16)+IF(B16>=G$5,G$6*G16/100*(AA16*(1-N$4-AA$12))/G$3,0)*N16 -> 4365.781452 | H63: =SUMPRODUCT(AH$14:AH16,N$14:N16)+IF(B16>=G$5,G$6*G16/100*(AB16*(1-N$4-AB$12))/G$3,0)*N16 -> 4321.588136
B64: 2030 | C64: 4 | D64: =SUMPRODUCT(AD$14:AD17,N$14:N17)+IF(B17>=G$5,G$6*G17/100*(X17*(1-N$4-X$12))/G$3,0)*N17 -> 4876.60236 | E64: =SUMPRODUCT(AE$14:AE17,N$14:N17)+IF(B17>=G$5,G$6*G17/100*(Y17*(1-N$4-Y$12))/G$3,0)*N17 -> 4799.954034 | F64: =SUMPRODUCT(AF$14:AF17,N$14:N17)+IF(B17>=G$5,G$6*G17/100*(Z17*(1-N$4-Z$12))/G$3,0)*N17 -> 4725.660681 | G64: =SUMPRODUCT(AG$14:AG17,N$14:N17)+IF(B17>=G$5,G$6*G17/100*(AA17*(1-N$4-AA$12))/G$3,0)*N17 -> 4653.673351 | H64: =SUMPRODUCT(AH$14:AH17,N$14:N17)+IF(B17>=G$5,G$6*G17/100*(AB17*(1-N$4-AB$12))/G$3,0)*N17 -> 4583.943093
B65: 2031 | C65: 5 | D65: =SUMPRODUCT(AD$14:AD18,N$14:N18)+IF(B18>=G$5,G$6*G18/100*(X18*(1-N$4-X$12))/G$3,0)*N18 -> 5134.688677 | E65: =SUMPRODUCT(AE$14:AE18,N$14:N18)+IF(B18>=G$5,G$6*G18/100*(Y18*(1-N$4-Y$12))/G$3,0)*N18 -> 5030.38978 | F65: =SUMPRODUCT(AF$14:AF18,N$14:N18)+IF(B18>=G$5,G$6*G18/100*(Z18*(1-N$4-Z$12))/G$3,0)*N18 -> 4930.729521 | G65: =SUMPRODUCT(AG$14:AG18,N$14:N18)+IF(B18>=G$5,G$6*G18/100*(AA18*(1-N$4-AA$12))/G$3,0)*N18 -> 4835.529608 | H65: =SUMPRODUCT(AH$14:AH18,N$14:N18)+IF(B18>=G$5,G$6*G18/100*(AB18*(1-N$4-AB$12))/G$3,0)*N18 -> 4744.61552
B66: 2032 | C66: 6 | D66: =SUMPRODUCT(AD$14:AD19,N$14:N19)+IF(B19>=G$5,G$6*G19/100*(X19*(1-N$4-X$12))/G$3,0)*N19 -> 5322.237834 | E66: =SUMPRODUCT(AE$14:AE19,N$14:N19)+IF(B19>=G$5,G$6*G19/100*(Y19*(1-N$4-Y$12))/G$3,0)*N19 -> 5193.167965 | F66: =SUMPRODUCT(AF$14:AF19,N$14:N19)+IF(B19>=G$5,G$6*G19/100*(Z19*(1-N$4-Z$12))/G$3,0)*N19 -> 5071.426083 | G66: =SUMPRODUCT(AG$14:AG19,N$14:N19)+IF(B19>=G$5,G$6*G19/100*(AA19*(1-N$4-AA$12))/G$3,0)*N19 -> 4956.608713 | H66: =SUMPRODUCT(AH$14:AH19,N$14:N19)+IF(B19>=G$5,G$6*G19/100*(AB19*(1-N$4-AB$12))/G$3,0)*N19 -> 4848.32909
B67: 2033 | C67: 7 | D67: =SUMPRODUCT(AD$14:AD20,N$14:N20)+IF(B20>=G$5,G$6*G20/100*(X20*(1-N$4-X$12))/G$3,0)*N20 -> 5445.25239 | E67: =SUMPRODUCT(AE$14:AE20,N$14:N20)+IF(B20>=G$5,G$6*G20/100*(Y20*(1-N$4-Y$12))/G$3,0)*N20 -> 5296.952778 | F67: =SUMPRODUCT(AF$14:AF20,N$14:N20)+IF(B20>=G$5,G$6*G20/100*(Z20*(1-N$4-Z$12))/G$3,0)*N20 -> 5158.554243 | G67: =SUMPRODUCT(AG$14:AG20,N$14:N20)+IF(B20>=G$5,G$6*G20/100*(AA20*(1-N$4-AA$12))/G$3,0)*N20 -> 5029.370173 | H67: =SUMPRODUCT(AH$14:AH20,N$14:N20)+IF(B20>=G$5,G$6*G20/100*(AB20*(1-N$4-AB$12))/G$3,0)*N20 -> 4908.754703
B68: 2034 | C68: 8 | D68: =SUMPRODUCT(AD$14:AD21,N$14:N21)+IF(B21>=G$5,G$6*G21/100*(X21*(1-N$4-X$12))/G$3,0)*N21 -> 5527.68479 | E68: =SUMPRODUCT(AE$14:AE21,N$14:N21)+IF(B21>=G$5,G$6*G21/100*(Y21*(1-N$4-Y$12))/G$3,0)*N21 -> 5364.556634 | F68: =SUMPRODUCT(AF$14:AF21,N$14:N21)+IF(B21>=G$5,G$6*G21/100*(Z21*(1-N$4-Z$12))/G$3,0)*N21 -> 5213.677347 | G68: =SUMPRODUCT(AG$14:AG21,N$14:N21)+IF(B21>=G$5,G$6*G21/100*(AA21*(1-N$4-AA$12))/G$3,0)*N21 -> 5074.041995 | H68: =SUMPRODUCT(AH$14:AH21,N$14:N21)+IF(B21>=G$5,G$6*G21/100*(AB21*(1-N$4-AB$12))/G$3,0)*N21 -> 4944.7219
B69: 2035 | C69: 9 | D69: =SUMPRODUCT(AD$14:AD22,N$14:N22)+IF(B22>=G$5,G$6*G22/100*(X22*(1-N$4-X$12))/G$3,0)*N22 -> 5577.221608 | E69: =SUMPRODUCT(AE$14:AE22,N$14:N22)+IF(B22>=G$5,G$6*G22/100*(Y22*(1-N$4-Y$12))/G$3,0)*N22 -> 5404.047608 | F69: =SUMPRODUCT(AF$14:AF22,N$14:N22)+IF(B22>=G$5,G$6*G22/100*(Z22*(1-N$4-Z$12))/G$3,0)*N22 -> 5244.952359 | G69: =SUMPRODUCT(AG$14:AG22,N$14:N22)+IF(B22>=G$5,G$6*G22/100*(AA22*(1-N$4-AA$12))/G$3,0)*N22 -> 5098.637438 | H69: =SUMPRODUCT(AH$14:AH22,N$14:N22)+IF(B22>=G$5,G$6*G22/100*(AB22*(1-N$4-AB$12))/G$3,0)*N22 -> 4963.920999
B70: 2036 | C70: 10 | D70: =SUMPRODUCT(AD$14:AD23,N$14:N23)+IF(B23>=G$5,G$6*G23/100*(X23*(1-N$4-X$12))/G$3,0)*N23 -> 5623.942655 | E70: =SUMPRODUCT(AE$14:AE23,N$14:N23)+IF(B23>=G$5,G$6*G23/100*(Y23*(1-N$4-Y$12))/G$3,0)*N23 -> 5440.253439 | F70: =SUMPRODUCT(AF$14:AF23,N$14:N23)+IF(B23>=G$5,G$6*G23/100*(Z23*(1-N$4-Z$12))/G$3,0)*N23 -> 5272.801746 | G70: =SUMPRODUCT(AG$14:AG23,N$14:N23)+IF(B23>=G$5,G$6*G23/100*(AA23*(1-N$4-AA$12))/G$3,0)*N23 -> 5119.890911 | H70: =SUMPRODUCT(AH$14:AH23,N$14:N23)+IF(B23>=G$5,G$6*G23/100*(AB23*(1-N$4-AB$12))/G$3,0)*N23 -> 4980.005567
B71: ** Net present value if replacement is sold in this year
B72: Increment to use for cow cull rate | H72: 0.025
B74: Values to include in chart (Calf number)
D75: Annual cow cull rate, %
B76: Calves | D76: =D59 -> 0.1 | E76: =E59 -> 0.125 | F76: =F59 -> 0.15 | G76: =G59 -> 0.175 | H76: =H59 -> 0.2
B77: 4 | C77: =B77&" calves" -> 4 calves | D77: =VLOOKUP($B77,$C$61:$H$70,2) -> 4876.60236 | E77: =VLOOKUP($B77,$C$61:$H$70,3) -> 4799.954034 | F77: =VLOOKUP($B77,$C$61:$H$70,4) -> 4725.660681 | G77: =VLOOKUP($B77,$C$61:$H$70,5) -> 4653.673351 | H77: =VLOOKUP($B77,$C$61:$H$70,6) -> 4583.943093
B78: 7 | C78: =B78&" calves" -> 7 calves | D78: =VLOOKUP($B78,$C$61:$H$70,2) -> 5445.25239 | E78: =VLOOKUP($B78,$C$61:$H$70,3) -> 5296.952778 | F78: =VLOOKUP($B78,$C$61:$H$70,4) -> 5158.554243 | G78: =VLOOKUP($B78,$C$61:$H$70,5) -> 5029.370173 | H78: =VLOOKUP($B78,$C$61:$H$70,6) -> 4908.754703
B79: 10 | C79: =B79&" calves" -> 10 calves | D79: =VLOOKUP($B79,$C$61:$H$70,2) -> 5623.942655 | E79: =VLOOKUP($B79,$C$61:$H$70,3) -> 5440.253439 | F79: =VLOOKUP($B79,$C$61:$H$70,4) -> 5272.801746 | G79: =VLOOKUP($B79,$C$61:$H$70,5) -> 5119.890911 | H79: =VLOOKUP($B79,$C$61:$H$70,6) -> 4980.005567

Sheet Sensitivity Table (hidden)
B2: Sensitivity of results in "Net present value" tab
B3: Range NPV values are pulled from | D3: O14:O23 | E3: E35:E44 | F3: AK14:AK23 | G3: AS14:AS23
B5: Table 1. Net Present Value of Beef Replacements, Sensitivity Analysis Summary* | I5: Marginal Impacts (relative to Base Case):
C6: Number | E6: 10% Lower | F6: 10% Lower | G6: 10% Higher | I6: Costs | J6: Discount | K6: Prices | L6: Costs | M6: Discount | N6: Prices
B7: Year | C7: of Calves | D7: Base Case | E7: Cow Costs/yr | F7: Discount Rate | G7: Calf Prices | I7: $/head | J7: $/head | K7: $/head | L7: % | M7: % | N7: %
B8: ='Net present value'!B14 -> 2027 | C8: ='Net present value'!D14 -> 1 | D8: ='Net present value'!O14 -> 3256.004831 | E8: ='Net present value'!E35 -> 3399.060387 | F8: ='Net present value'!AK14 -> 3280.303375 | G8: ='Net present value'!AS14 -> 3685.329807 | I8: =E8-$D8 -> 143.0555556 | J8: =F8-$D8 -> 24.29854352 | K8: =G8-$D8 -> 429.3249756 | L8: =I8/$D8 -> 0.04393591624 | M8: =J8/$D8 -> 0.007462686567 | N8: =K8/$D8 -> 0.1318563693
B9: ='Net present value'!B15 -> 2028 | C9: ='Net present value'!D15 -> 2 | D9: ='Net present value'!O15 -> 4038.483173 | E9: ='Net present value'!E36 -> 4296.824287 | F9: ='Net present value'!AK15 -> 4087.831908 | G9: ='Net present value'!AS15 -> 4630.516446 | I9: 258.3411137 | J9: 49.34873489 | K9: 592.033273 | L9: 0.06396983784 | M9: 0.01221962127 | N9: 0.1465979299
B10: ='Net present value'!B16 -> 2029 | C10: ='Net present value'!D16 -> 3 | D10: ='Net present value'!O16 -> 4410.626255 | E10: ='Net present value'!E37 -> 4761.873652 | F10: ='Net present value'!AK16 -> 4478.820709 | G10: ='Net present value'!AS16 -> 5108.662104 | I10: 351.2473966 | J10: 68.1944543 | K10: 698.035849 | L10: 0.07963662669 | M10: 0.01546139944 | N10: 0.1582622985
B11: ='Net present value'!B17 -> 2030 | C11: ='Net present value'!D17 -> 4 | D11: ='Net present value'!O17 -> 4725.660681 | E11: ='Net present value'!E38 -> 5151.779358 | F11: ='Net present value'!AK17 -> 4810.79234 | G11: ='Net present value'!AS17 -> 5511.06312 | I11: 426.1186774 | J11: 85.13165916 | K11: 785.4024393 | L11: 0.09017123873 | M11: 0.01801476342 | N11: 0.1661994993
B12: ='Net present value'!B18 -> 2031 | C12: ='Net present value'!D18 -> 5 | D12: ='Net present value'!O18 -> 4930.729521 | E12: ='Net present value'!E39 -> 5417.185438 | F12: ='Net present value'!AK18 -> 5029.221233 | G12: ='Net present value'!AS18 -> 5782.005829 | I12: 486.4559175 | J12: 98.49171205 | K12: 851.2763085 | L12: 0.0986580009 | M12: 0.01997507907 | N12: 0.1726471316
B13: ='Net present value'!B19 -> 2032 | C13: ='Net present value'!D19 -> 6 | D13: ='Net present value'!O19 -> 5071.426083 | E13: ='Net present value'!E40 -> 5606.506553 | F13: ='Net present value'!AK19 -> 5180.512034 | G13: ='Net present value'!AS19 -> 5973.498778 | I13: 535.0804702 | J13: 109.0859514 | K13: 902.0726957 | L13: 0.1055088769 | M13: 0.02150991648 | N13: 0.1778735766
B14: ='Net present value'!B20 -> 2033 | C14: ='Net present value'!D20 -> 7 | D14: ='Net present value'!O20 -> 5158.554243 | E14: ='Net present value'!E41 -> 5732.82025 | F14: ='Net present value'!AK20 -> 5275.446773 | G14: ='Net present value'!AS20 -> 6098.975721 | I14: 574.2660067 | J14: 116.8925295 | K14: 940.4214774 | L14: 0.1113230529 | M14: 0.02265993998 | N14: 0.182303303
B15: ='Net present value'!B21 -> 2034 | C15: ='Net present value'!D21 -> 8 | D15: ='Net present value'!O21 -> 5213.677347 | E15: ='Net present value'!E42 -> 5819.522179 | F15: ='Net present value'!AK21 -> 5336.328073 | G15: ='Net present value'!AS21 -> 6183.56803 | I15: 605.8448323 | J15: 122.6507265 | K15: 969.8906831 | L15: 0.1162029777 | M15: 0.02352480186 | N15: 0.1860281369
B16: ='Net present value'!B22 -> 2035 | C16: ='Net present value'!D22 -> 9 | D16: ='Net present value'!O22 -> 5244.952359 | E16: ='Net present value'!E43 -> 5876.245924 | F16: ='Net present value'!AK22 -> 5371.575423 | G16: ='Net present value'!AS22 -> 6237.322638 | I16: 631.2935646 | J16: 126.6230633 | K16: 992.3702781 | L16: 0.1203621161 | M16: 0.02414189008 | N16: 0.1892048221
B17: ='Net present value'!B23 -> 2036 | C17: ='Net present value'!D23 -> 10 | D17: ='Net present value'!O23 -> 5272.801746 | E17: ='Net present value'!E44 -> 5924.603925 | F17: ='Net present value'!AK23 -> 5402.948379 | G17: ='Net present value'!AS23 -> 6283.58789 | I17: 651.8021796 | J17: 130.1466337 | K17: 1010.786145 | L17: 0.1236159088 | M17: 0.02468263364 | N17: 0.191698113
B19: Key Inputs Varied Across Scenarios**:
B20: Annual cow costs, $/year | D20: ='Net present value'!G7 -> 1100 | E20: ='Net present value'!E33 -> 950 | F20: =D20 -> 1100 | G20: =D20 -> 1100
B21: Discount rate, interest rate | D21: ='Net present value'!$N9 -> 0.08 | E21: ='Net present value'!$N9 -> 0.08 | F21: 0.0675 | G21: =D21 -> 0.08
B22: Calf Price, $/cwt | C22: =B8 -> 2027 | D22: ='Net present value'!F14 -> 455.57 | E22: =D22 -> 455.57 | F22: =E22 -> 455.57 | G22: ='Net present value'!AM14 -> 500.884
C23: 2028 | D23: ='Net present value'!F15 -> 451.02898 | E23: =D23 -> 451.02898 | F23: 451.02898 | G23: ='Net present value'!AM15 -> 496.11098
C24: 2029 | D24: ='Net present value'!F16 -> 404.3661463 | E24: 404.3661463 | F24: 404.3661463 | G24: ='Net present value'!AM16 -> 445.0091463
C25: 2030 | D25: ='Net present value'!F17 -> 384.5256939 | E25: 384.5256939 | F25: 384.5256939 | G25: ='Net present value'!AM17 -> 423.3536939
C26: 2031 | D26: ='Net present value'!F18 -> 362.270356 | E26: 362.270356 | F26: 362.270356 | G26: ='Net present value'!AM18 -> 399.045356
C27: 2032 | D27: ='Net present value'!F19 -> 345.5739163 | E27: 345.5739163 | F27: 345.5739163 | G27: ='Net present value'!AM19 -> 380.7899163
C28: 2033 | D28: ='Net present value'!F20 -> 330.3051468 | E28: 330.3051468 | F28: 330.3051468 | G28: ='Net present value'!AM20 -> 364.0401468
C29: 2034 | D29: ='Net present value'!F21 -> 317.2049213 | E29: 317.2049213 | F29: 317.2049213 | G29: ='Net present value'!AM21 -> 349.7159213
C30: 2035 | D30: ='Net present value'!F22 -> 304.8227067 | E30: 304.8227067 | F30: 304.8227067 | G30: ='Net present value'!AM22 -> 336.1687067
C31: 2036 | D31: ='Net present value'!F23 -> 304.085668 | E31: 304.085668 | F31: 304.085668 | G31: ='Net present value'!AM23 -> 335.431668
B32: * NPV is Net Present Value of a replacement expected to produce the number of saleable calves listed in the "Number of Calves" column before a cow is culled for age-related reasons.
B35: ** Annual cow cost, discount rate, and calf price assumptions were varied with all other inputs set at their settings in the NET PRESENT VALUE tab.
